bitfinex/quotes_BTCUSD_20220111
["timestamp","ask_amount","ask_price","bid_price","bid_amount"]
[1641915466975,0.4663116,41699.0,41696.0,0.00015]
[1641915467172,0.00722713,41701.0,41696.0,0.00015]
[1641915467573,0.00722713,41701.0,41697.0,0.37403]
[1641915467774,0.00722713,41701.0,41698.0,0.3233668]
[1641915467974,0.00722713,41701.0,41699.0,0.37403]
[1641915468174,0.00722713,41701.0,41699.0,0.37418]
[1641915468376,0.00722713,41701.0,41700.0,2.03765836]
[1641915468574,0.00722713,41701.0,41700.0,2.41168836]
[1641915470228,0.00722713,41701.0,41700.0,1.31468836]
[1641915470423,0.00722713,41701.0,41700.0,1.50468836]
[1641915470623,0.00722713,41701.0,41700.0,0.56718]
[1641915471024,0.00722713,41701.0,41700.0,0.24315]
[1641915471423,0.45591021,41711.0,41710.0,0.99155283]
[1641915471625,0.62585121,41711.0,41710.0,0.99155283]
[1641915471823,0.62585121,41711.0,41710.0,0.51177983]
[1641915472025,0.584147,41711.0,41710.0,0.51177983]
[1641915472227,0.585147,41711.0,41710.0,0.51177983]
[1641915472424,0.89510533,41711.0,41710.0,0.51177983]
[1641915473271,0.93457692,41711.0,41710.0,0.51177983]
[1641915473469,0.89410533,41711.0,41710.0,0.51177983]
[1641915473671,0.89410533,41711.0,41710.0,0.03197683]
[1641915474271,0.47828344,41707.0,41706.0,0.0007819]
[1641915474472,1.16422731,41707.0,41702.0,0.2681289]
[1641915474672,0.37403,41706.0,41704.0,0.00078197]
[1641915475071,0.47403,41706.0,41704.0,0.00078197]
[1641915475671,0.47403,41706.0,41702.0,0.2681289]
[1641915475872,0.06719984,41705.0,41703.0,0.00078201]
[1641915476071,0.42403,41704.0,41703.0,0.00078201]
[1641915476274,0.25,41703.0,41691.0,0.0012986]
[1641915477120,0.00722484,41705.0,41702.0,0.00124133]
[1641915478120,0.00722484,41705.0,41704.0,0.49945287]
[1641915478621,0.00722484,41705.0,41704.0,0.92348287]
[1641915480422,0.00722484,41705.0,41704.0,1.04437487]
[1641915480682,0.00722484,41705.0,41704.0,1.68437487]
[1641915481073,0.00085664,41709.0,41705.0,1.3]
[1641915481273,0.00085664,41709.0,41706.0,0.37403]
[1641915481472,0.00085664,41709.0,41706.0,0.42403]
[1641915481673,0.02929259,41712.0,41706.0,0.52403]
[1641915481874,0.00100666,41710.0,41708.0,0.35476439]
[1641915482075,0.00100666,41710.0,41709.0,0.71677633]
[1641915482275,0.00100666,41710.0,41708.0,0.05]
[1641915482476,0.00100666,41710.0,41706.0,0.051]
[1641915482477,0.00100666,41710.0,41706.0,0.001]
[1641915482875,0.37403,41709.0,41706.0,0.001]
[1641915483075,0.34404474,41708.0,41706.0,0.001]
[1641915483276,0.02929259,41712.0,41710.0,0.13091861]
[1641915483277,0.059966,41711.0,41710.0,0.13091861]
[1641915483476,0.433837,41711.0,41710.0,0.42945921]
[1641915483680,0.02929259,41712.0,41710.0,0.42945921]
[1641915484418,0.03029259,41712.0,41710.0,0.13091861]
[1641915485720,0.03709777,41711.0,41710.0,0.13091861]
[1641915485919,0.9251265,41711.0,41710.0,0.13091861]
[1641915486119,1.073871,41711.0,41710.0,0.13091861]
[1641915486320,1.074871,41711.0,41710.0,0.13091861]
[1641915486720,0.5,41710.0,41705.0,0.00078264]
[1641915486920,0.05997,41707.0,41702.0,0.25316978]
[1641915487119,0.3810958,41706.0,41702.0,0.25316978]
[1641915487321,0.3810958,41706.0,41702.0,0.30316978]
[1641915487521,0.4310958,41706.0,41702.0,0.30316978]
[1641915487921,0.4310958,41706.0,41702.0,0.58736336]
[1641915488372,0.3820958,41706.0,41702.0,0.58836336]
[1641915488571,0.0082248,41706.0,41702.0,0.58836336]
[1641915489375,0.0082248,41706.0,41703.0,0.36731623]
[1641915489674,0.0072248,41706.0,41705.0,0.00128651]
[1641915489873,0.0072248,41706.0,41705.0,1.47515751]
[1641915490075,0.0072248,41706.0,41705.0,1.52515751]
[1641915490277,0.02929259,41712.0,41705.0,1.52515751]
[1641915490278,0.02929259,41712.0,41706.0,1.3]
[1641915490481,0.57790485,41719.0,41709.0,0.119872]
[1641915490675,0.57790485,41719.0,41716.0,0.00126173]
[1641915490877,0.57790485,41719.0,41718.0,0.00128762]
[1641915491377,0.95177585,41719.0,41718.0,0.41534503]
[1641915491577,1.00177585,41719.0,41718.0,0.41534503]
[1641915491778,0.373871,41719.0,41718.0,0.41534503]
[1641915492019,0.00085655,41721.0,41718.0,0.41528503]
[1641915492419,0.57790485,41724.0,41718.0,0.41628503]
[1641915492621,0.00085654,41721.0,41718.0,0.001]
[1641915492824,0.373871,41719.0,41718.0,0.001]
[1641915493020,0.00085654,41721.0,41718.0,0.001]
[1641915493721,0.57790485,41725.0,41716.0,0.28112061]
[1641915494020,1.09012232,41727.0,41716.0,0.28241164]
[1641915494021,0.00085654,41721.0,41716.0,0.28241164]
[1641915494223,0.00085654,41721.0,41719.0,0.65780874]
[1641915494521,0.00085654,41721.0,41719.0,1.80901161]
[1641915494721,0.00085654,41721.0,41719.0,2.18288261]
[1641915494921,0.57790485,41724.0,41719.0,2.6773207]
[1641915495121,0.00085654,41722.0,41720.0,1.3]
[1641915495324,0.00085654,41722.0,41721.0,1.327987]
[1641915495522,0.67422232,41726.0,41723.0,0.26310266]
[1641915495778,0.00342565,41728.0,41723.0,0.26310266]
[1641915495779,0.00342565,41728.0,41726.0,1.3]
[1641915495982,0.68632727,41732.0,41729.0,1.3]
[1641915496178,0.03676365,41736.0,41729.0,1.3]
[1641915496179,0.5822258,41733.0,41731.0,0.00128602]
[1641915496377,0.5822258,41733.0,41732.0,0.9442]
[1641915496582,0.5822258,41733.0,41732.0,1.62866428]
[1641915496779,0.5822258,41733.0,41732.0,2.00253528]
[1641915496978,0.5822258,41733.0,41732.0,2.25740877]
[1641915497178,0.03676365,41736.0,41732.0,2.25740877]
[1641915497380,0.03676365,41736.0,41735.0,0.00121791]
[1641915497679,0.03676365,41736.0,41735.0,0.37508891]
[1641915498278,0.03676365,41736.0,41735.0,0.62508891]
[1641915498479,0.00015,41740.0,41736.0,1.2]
[1641915498678,0.00015,41740.0,41739.0,0.0012281]
[1641915498881,0.00015,41740.0,41739.0,1.84733917]
[1641915499081,0.00015,41740.0,41739.0,1.94733917]
[1641915499518,0.00015,41740.0,41739.0,2.59347644]
[1641915500320,0.00015,41740.0,41739.0,2.59447644]
[1641915501617,0.00015,41740.0,41739.0,1.27161234]
[1641915501818,0.00015,41740.0,41739.0,0.2441]
[1641915502020,0.00015,41740.0,41739.0,0.0999]
[1641915502223,0.7306164,41740.0,41739.0,0.0999]
[1641915502518,0.7756164,41740.0,41739.0,0.1019]
[1641915502719,1.05541774,41740.0,41739.0,0.002]
[1641915503018,0.69882234,41740.0,41739.0,0.00194]
[1641915503273,0.419021,41740.0,41739.0,0.00194]
[1641915503672,0.419021,41740.0,41734.0,0.45930623]
[1641915503870,0.00015,41740.0,41734.0,0.45720253]
[1641915504471,0.00115,41740.0,41734.0,0.50720253]
[1641915504672,0.00115,41740.0,41726.0,0.00081577]
[1641915504673,0.00085636,41739.0,41726.0,0.00081577]
[1641915504880,0.00085636,41739.0,41728.0,0.05]
[1641915505072,0.373871,41738.0,41728.0,0.05]
[1641915505275,0.3981589,41737.0,41728.0,0.05]
[1641915505474,0.098559,41736.0,41728.0,0.05]
[1641915505677,0.3526135,41736.0,41731.0,0.32606266]
[1641915505978,0.00085641,41734.0,41731.0,0.32606266]
[1641915506376,0.00085641,41734.0,41731.0,0.32706266]
[1641915506778,0.00085641,41734.0,41732.0,0.373871]
[1641915507022,0.00721886,41735.0,41731.0,0.60821718]
[1641915507221,0.00807527,41735.0,41731.0,0.60821718]
[1641915507621,0.00807527,41735.0,41734.0,0.72376779]
[1641915507822,0.00807527,41735.0,41734.0,0.37376779]
[1641915508221,0.00721886,41735.0,41734.0,0.37376779]
[1641915508422,0.00721886,41735.0,41734.0,0.37476779]
[1641915509223,0.00721886,41735.0,41734.0,0.72476779]
[1641915509624,0.00721886,41735.0,41734.0,1.09763879]
[1641915510423,0.31268691,41743.0,41740.0,0.99177475]
[1641915510681,0.49750721,41749.0,41740.0,0.99177475]
[1641915510868,0.373871,41748.0,41740.0,0.99177475]
[1641915511068,0.473871,41748.0,41740.0,0.99177475]
[1641915511273,0.473871,41748.0,41740.0,0.99171475]
[1641915511274,0.14096356,41747.0,41740.0,0.99171475]
[1641915511568,0.47084648,41742.0,41740.0,0.51232275]
[1641915511767,1.53698107,41741.0,41740.0,0.51232275]
[1641915511966,1.53698107,41741.0,41730.0,0.00015]
[1641915511967,0.25784376,41735.0,41726.0,0.00015]
[1641915512168,0.70192786,41734.0,41726.0,0.00015]
[1641915512370,0.75192786,41734.0,41726.0,0.00015]
[1641915512574,0.75192786,41734.0,41728.0,0.34311219]
[1641915512969,0.418871,41734.0,41729.0,0.00015]
[1641915513170,0.05,41734.0,41729.0,0.00015]
[1641915513369,0.00722018,41735.0,41729.0,0.00015]
[1641915513969,0.373713,41734.0,41729.0,0.00015]
[1641915514169,0.73961003,41734.0,41729.0,0.00015]
[1641915514420,0.74045925,41734.0,41730.0,0.00082412]
[1641915514718,0.423713,41734.0,41730.0,0.00097412]
[1641915515317,0.423713,41734.0,41730.0,0.00015]
[1641915515517,0.423713,41734.0,41730.0,0.00097412]
[1641915515717,0.423713,41734.0,41728.0,0.39311219]
[1641915515919,0.423713,41734.0,41721.0,0.00120642]
[1641915515920,0.28530807,41731.0,41721.0,0.00120642]
[1641915516118,0.3334395,41730.0,41720.0,0.00015]
[1641915516321,0.38138548,41730.0,41716.0,0.00015]
[1641915516517,0.38138548,41730.0,41721.0,0.002]
[1641915516518,0.48138548,41730.0,41721.0,0.002]
[1641915516717,0.41677443,41729.0,41721.0,0.002]
[1641915516917,0.059945,41725.0,41721.0,0.002]
[1641915517120,0.0942,41729.0,41721.0,0.002]
[1641915517520,0.44065968,41735.0,41721.0,0.002]
[1641915517717,0.44065968,41735.0,41720.0,0.00015]
[1641915517917,0.08870177,41734.0,41720.0,0.00015]
[1641915518175,0.08870177,41734.0,41722.0,0.38491435]
[1641915518371,0.03870177,41734.0,41728.0,0.424828]
[1641915518572,0.373713,41733.0,41728.0,0.424828]
[1641915518973,0.00722018,41735.0,41731.0,0.32953281]
[1641915519171,0.00722018,41735.0,41728.0,0.4252481]
[1641915519770,0.00722018,41735.0,41730.0,0.43682905]
[1641915520570,0.00822018,41735.0,41730.0,0.43682905]
[1641915520770,0.00822018,41735.0,41728.0,0.42564409]
[1641915520971,0.00822018,41735.0,41728.0,0.00081609]
[1641915521175,1.25,41729.0,41728.0,0.00081609]
[1641915521373,0.82492918,41729.0,41720.0,0.00015]
[1641915521577,0.45943772,41729.0,41728.0,0.0008161]
[1641915521772,1.15603221,41729.0,41728.0,0.0008161]
[1641915522222,0.8001696,41729.0,41728.0,0.0008161]
[1641915522522,0.484652,41729.0,41725.0,0.34428242]
[1641915522725,0.41029715,41728.0,41726.0,0.00081616]
[1641915523123,0.093741,41728.0,41726.0,0.00081616]
[1641915523322,0.40761989,41728.0,41726.0,0.00081616]
[1641915523522,0.25217371,41731.0,41730.0,0.48144611]
[1641915523722,0.62588171,41731.0,41730.0,0.00193811]
[1641915524125,0.62588171,41731.0,41728.0,0.00081611]
[1641915524324,0.373708,41729.0,41728.0,0.00081611]
[1641915524924,0.373708,41729.0,41724.0,0.43908764]
[1641915525124,0.059939,41727.0,41726.0,0.00081616]
[1641915525326,0.373708,41727.0,41726.0,0.00081616]
[1641915525526,0.473708,41727.0,41726.0,0.00081616]
[1641915525767,0.45,41726.0,41717.0,0.00015]
[1641915525968,0.09946195,41726.0,41717.0,0.00015]
[1641915526170,0.15,41726.0,41718.0,0.37372153]
[1641915526369,0.059941,41724.0,41718.0,0.37372153]
[1641915526569,0.059941,41724.0,41719.0,0.00015]
[1641915527170,0.36414483,41724.0,41719.0,9e-05]
[1641915527370,0.059941,41724.0,41719.0,9e-05]
[1641915527570,0.05,41726.0,41719.0,0.00050812]
[1641915527973,0.05,41726.0,41720.0,9e-05]
[1641915528573,0.051,41726.0,41720.0,0.00109]
[1641915528773,0.32464214,41726.0,41721.0,0.00080838]
[1641915528974,0.03940409,41725.0,41721.0,0.00080838]
[1641915529173,0.373708,41724.0,41721.0,0.00080838]
[1641915529424,0.81479676,41722.0,41721.0,0.00080838]
[1641915529720,0.02773704,41719.0,41712.0,0.0999]
[1641915529920,0.29644675,41718.0,41712.0,0.0999]
[1641915530121,0.29644675,41718.0,41708.0,0.00015]
[1641915530122,0.95,41716.0,41708.0,0.00015]
[1641915530319,0.95,41716.0,41698.0,0.0011]
[1641915530320,0.73296677,41715.0,41704.0,0.00015]
[1641915530521,0.73296677,41715.0,41712.0,0.001]
[1641915530522,0.83607822,41715.0,41712.0,0.001]
[1641915530719,1.01099281,41713.0,41699.0,0.0003]
[1641915530919,0.059965,41708.0,41701.0,0.28307731]
[1641915531121,0.7,41713.0,41701.0,0.28307731]
[1641915531322,0.25842835,41710.0,41702.0,0.00015]
[1641915531521,0.423708,41709.0,41702.0,0.00015]
[1641915531922,0.05,41709.0,41702.0,0.32607429]
[1641915532124,0.0442,41718.0,41703.0,0.37501867]
[1641915532324,0.0442,41718.0,41703.0,0.00184191]
[1641915532523,0.0442,41718.0,41711.0,0.34467532]
[1641915532724,0.373708,41717.0,41714.0,0.26269329]
[1641915532922,0.373708,41717.0,41711.0,0.34467532]
[1641915533178,0.373708,41717.0,41716.0,0.41125725]
[1641915533573,0.02773704,41719.0,41716.0,0.41125725]
[1641915533974,0.02773704,41719.0,41717.0,0.32430956]
[1641915534174,0.02773704,41719.0,41718.0,1.173743]
[1641915534376,0.58204912,41726.0,41718.0,2.24408869]
[1641915534577,0.58119273,41726.0,41718.0,1.87034569]
[1641915534779,0.58119273,41726.0,41725.0,0.77041932]
[1641915534780,0.58204917,41726.0,41725.0,0.77041932]
[1641915535081,0.00085644,41726.0,41725.0,0.82035932]
[1641915535277,0.00085644,41726.0,41725.0,1.19410232]
[1641915535479,0.00085644,41726.0,41725.0,1.07420235]
[1641915535677,0.00015,41730.0,41725.0,0.70378303]
[1641915535877,0.00085648,41728.0,41727.0,0.43236866]
[1641915536078,0.00085648,41728.0,41725.0,0.04994]
[1641915536277,0.373708,41727.0,41725.0,0.04994]
[1641915536677,0.373708,41727.0,41719.0,0.00080056]
[1641915536925,0.25033014,41722.0,41718.0,0.00121674]
[1641915537124,0.25033014,41722.0,41719.0,0.00080058]
[1641915537328,0.05,41722.0,41719.0,0.00080058]
[1641915537527,0.05085649,41726.0,41719.0,0.00080058]
[1641915537726,0.11079649,41726.0,41719.0,0.00080058]
[1641915537925,0.00085649,41726.0,41719.0,0.00080058]
[1641915538125,0.05,41726.0,41718.0,0.3990258]
[1641915538326,0.05085648,41726.0,41719.0,0.00080059]
[1641915538525,0.05185648,41726.0,41719.0,0.00180059]
[1641915539327,0.001,41726.0,41719.0,0.001]
[1641915539528,0.00185648,41726.0,41719.0,0.00180059]
[1641915539727,0.00085648,41726.0,41719.0,0.00080059]
[1641915540330,0.9,41731.0,41719.0,0.00080059]
[1641915540529,0.373708,41730.0,41720.0,0.00015]
[1641915540776,0.45787665,41730.0,41720.0,0.00015]
[1641915540973,0.55787665,41730.0,41720.0,0.00015]
[1641915541177,0.32033747,41724.0,41720.0,0.00015]
[1641915541377,0.32033747,41724.0,41719.0,0.001]
[1641915541378,1.35543744,41721.0,41719.0,0.001]
[1641915541575,1.35543744,41721.0,41709.0,0.00015]
[1641915541576,0.373708,41720.0,41709.0,0.00015]
[1641915541777,0.46333759,41720.0,41708.0,0.00015]
[1641915541975,0.56333759,41720.0,41703.0,0.00144038]
[1641915542176,0.18962959,41720.0,41704.0,0.00015]
[1641915542378,0.18962959,41720.0,41713.0,0.45937193]
[1641915542582,0.373708,41719.0,41713.0,0.45937193]
[1641915542977,0.473708,41719.0,41713.0,0.45937193]
[1641915543178,0.473708,41719.0,41711.0,0.24827714]
[1641915543578,0.059954,41716.0,41705.0,0.00015]
[1641915543978,0.059954,41716.0,41704.0,0.00015]
[1641915544422,0.059954,41716.0,41708.0,0.00080921]
[1641915544821,0.059954,41716.0,41709.0,0.00015]
[1641915545423,0.373708,41715.0,41710.0,0.33062573]
[1641915545723,0.15,41715.0,41710.0,0.33158488]
[1641915546522,0.151,41715.0,41712.0,0.30071943]
[1641915546723,0.051,41715.0,41712.0,0.30071943]
[1641915547126,0.001,41715.0,41712.0,0.35071943]
[1641915547829,0.03172944,41721.0,41717.0,0.29723428]
[1641915548026,0.03172944,41721.0,41720.0,1.55778777]
[1641915548277,0.03172944,41721.0,41720.0,1.60778777]
[1641915548479,0.03272944,41721.0,41720.0,1.60878777]
[1641915548977,0.03272944,41721.0,41720.0,1.98380252]
[1641915549277,0.03272944,41721.0,41720.0,1.61005952]
[1641915549476,0.23272944,41721.0,41720.0,1.11005952]
[1641915549876,0.23172944,41721.0,41720.0,1.10905952]
[1641915550278,0.23172944,41721.0,41720.0,1.10899952]
[1641915550480,0.23172944,41721.0,41720.0,1.10999952]
[1641915550877,0.23172944,41721.0,41720.0,0.46089363]
[1641915551926,0.23172944,41721.0,41720.0,0.45989363]
[1641915552526,0.23272944,41721.0,41720.0,0.46089363]
[1641915552727,0.23272944,41721.0,41720.0,0.05094]
[1641915552928,0.23272944,41721.0,41720.0,0.001]
[1641915553232,0.65643744,41721.0,41720.0,0.001]
[1641915553428,0.65643744,41721.0,41712.0,0.0999]
[1641915553429,0.47085177,41719.0,41712.0,0.0999]
[1641915553629,0.36712385,41718.0,41712.0,0.0999]
[1641915553828,0.26186186,41716.0,41709.0,0.33026203]
[1641915554028,0.059961,41713.0,41709.0,0.33026203]
[1641915554227,0.059961,41713.0,41710.0,0.00015]
[1641915556672,0.060961,41713.0,41710.0,0.00115]
[1641915556874,0.34333833,41712.0,41710.0,0.00115]
[1641915557074,0.973708,41711.0,41710.0,0.00115]
[1641915557274,1.34971047,41711.0,41710.0,0.00115]
[1641915557476,1.44971047,41711.0,41710.0,0.00115]
[1641915557674,0.84971047,41711.0,41710.0,0.00115]
[1641915557875,1.03852999,41711.0,41710.0,0.00015]
[1641915558074,0.75971047,41711.0,41710.0,0.00015]
[1641915558274,0.75971047,41711.0,41710.0,0.42246258]
[1641915558275,0.283708,41711.0,41710.0,0.42246258]
[1641915558478,0.05,41712.0,41710.0,0.42246258]
[1641915558677,0.001,41711.0,41710.0,0.42261258]
[1641915559921,0.059957,41714.0,41710.0,0.42261258]
[1641915560622,0.064957,41714.0,41710.0,0.42261258]
[1641915561026,0.005,41714.0,41710.0,0.42261258]
[1641915561222,0.005,41714.0,41710.0,0.4234139]
[1641915561624,0.005,41714.0,41710.0,0.4734139]
[1641915561825,0.05,41716.0,41710.0,0.4734139]
[1641915562024,1.28051788,41719.0,41710.0,0.4734139]
[1641915562325,0.343643,41718.0,41711.0,0.0008013]
[1641915562525,0.443643,41718.0,41711.0,0.0008013]
[1641915563180,0.7641715,41718.0,41711.0,0.0008013]
[1641915563373,0.7641715,41718.0,41710.0,0.47261258]
[1641915563576,0.7641715,41718.0,41712.0,0.00080125]
[1641915563577,0.6641715,41718.0,41712.0,0.00080125]
[1641915563775,0.283691,41714.0,41712.0,0.00080125]
[1641915563973,0.34365,41713.0,41712.0,0.00080125]
[1641915564173,0.283691,41713.0,41712.0,0.00080125]
[1641915564373,0.333691,41713.0,41712.0,0.00080125]
[1641915564575,0.334691,41713.0,41710.0,0.47261258]
[1641915564873,0.051,41713.0,41710.0,0.47341389]
[1641915565074,0.2448961,41712.0,41710.0,0.00095131]
[1641915565275,1.23232174,41711.0,41710.0,0.00095131]
[1641915565674,1.33232174,41711.0,41710.0,0.00015]
[1641915566177,0.38734305,41709.0,41702.0,0.43125475]
[1641915566375,0.34424575,41708.0,41702.0,0.43125475]
[1641915566576,0.283691,41707.0,41702.0,0.43125475]
[1641915567032,0.283691,41707.0,41706.0,0.00015]
[1641915568633,0.284691,41707.0,41706.0,0.00115]
[1641915568839,0.344659,41707.0,41706.0,0.001]
[1641915569234,0.284691,41707.0,41706.0,0.001]
[1641915569833,0.283691,41707.0,41705.0,0.00015]
[1641915570035,0.05,41708.0,41705.0,0.00015]
[1641915570233,0.00722439,41709.0,41705.0,0.44129619]
[1641915570436,0.58073419,41713.0,41706.0,0.33693377]
[1641915570690,0.2,41707.0,41706.0,0.10015]
[1641915570882,0.2,41707.0,41706.0,1.52513155]
[1641915571082,0.58073419,41714.0,41707.0,1.3]
[1641915571286,0.58073419,41714.0,41713.0,1.64143097]
[1641915571487,0.58159071,41716.0,41713.0,1.69271852]
[1641915571683,0.58073419,41716.0,41713.0,1.69271852]
[1641915571984,0.58073419,41716.0,41713.0,0.86045346]
[1641915572386,0.58073419,41716.0,41714.0,0.26729122]
[1641915572586,0.00085659,41717.0,41714.0,0.26729122]
[1641915572784,0.00085659,41717.0,41714.0,0.31729122]
[1641915572984,0.58073419,41720.0,41714.0,0.31729122]
[1641915573185,0.00085658,41718.0,41714.0,0.31729122]
[1641915573386,0.00085658,41718.0,41714.0,0.05]
[1641915573587,0.283691,41715.0,41713.0,0.001]
[1641915573791,0.633691,41714.0,41710.0,0.00015]
[1641915573991,0.683691,41711.0,41707.0,0.00015]
[1641915574188,0.283691,41708.0,41707.0,0.00015]
[1641915574426,0.333691,41708.0,41707.0,0.00015]
[1641915574626,0.333691,41708.0,41707.0,0.003]
[1641915575025,0.333691,41708.0,41707.0,0.00315]
[1641915575026,0.393657,41708.0,41707.0,0.00315]
[1641915575428,0.333691,41708.0,41707.0,0.00315]
[1641915575827,0.333691,41708.0,41707.0,0.00015]
[1641915576227,0.333691,41708.0,41706.0,0.00015]
[1641915576629,0.334691,41708.0,41707.0,0.003]
[1641915577028,0.334691,41708.0,41707.0,0.00315]
[1641915577627,0.394657,41708.0,41707.0,0.00315]
[1641915577827,0.393657,41708.0,41707.0,0.00015]
[1641915578278,0.393657,41708.0,41705.0,0.0007613]
[1641915578478,0.393657,41708.0,41706.0,0.00015]
[1641915578679,0.397657,41708.0,41706.0,0.00015]
[1641915579380,0.397657,41708.0,41705.0,0.00076131]
[1641915579779,0.393657,41708.0,41705.0,0.00076131]
[1641915580182,0.343657,41708.0,41704.0,0.00015]
[1641915580381,0.343657,41708.0,41704.0,0.00091131]
[1641915580586,0.343657,41708.0,41704.0,0.00076131]
[1641915580779,0.345657,41708.0,41705.0,0.00015]
[1641915581579,0.40288009,41708.0,41705.0,0.00015]
[1641915581779,0.40288009,41708.0,41704.0,0.00078547]
[1641915582028,0.11718909,41708.0,41704.0,0.00078547]
[1641915582226,0.11763436,41708.0,41704.0,0.00078547]
[1641915582426,0.06763436,41708.0,41704.0,0.00078547]
[1641915582626,0.059967,41706.0,41704.0,0.001]
[1641915582827,0.059967,41706.0,41704.0,0.00178547]
[1641915583027,0.059967,41706.0,41705.0,0.00015]
[1641915583827,0.11763236,41708.0,41705.0,0.00015]
[1641915584028,0.05766836,41708.0,41705.0,0.00015]
[1641915584229,0.05766836,41708.0,41703.0,0.00093548]
[1641915584427,0.00722309,41708.0,41704.0,0.00015]
[1641915584631,0.00922309,41708.0,41704.0,0.00015]
[1641915585129,0.00922309,41708.0,41704.0,0.00092777]
[1641915585684,0.00922309,41708.0,41705.0,0.00015]
[1641915585874,0.00722309,41708.0,41705.0,0.00015]
[1641915586675,0.00822309,41708.0,41705.0,0.00115]
[1641915587076,0.283691,41707.0,41706.0,0.00015]
[1641915587280,1.033691,41707.0,41706.0,0.00015]
[1641915587488,0.53309903,41706.0,41705.0,0.001]
[1641915587675,0.783691,41706.0,41705.0,0.001]
[1641915587875,0.783691,41706.0,41700.0,0.00015]
[1641915587876,0.4,41705.0,41700.0,0.00015]
[1641915588076,0.61578423,41701.0,41700.0,0.00015]
[1641915588276,0.67576823,41701.0,41700.0,0.00015]
[1641915588476,0.77576823,41701.0,41700.0,0.00015]
[1641915588676,0.77676823,41701.0,41700.0,0.00015]
[1641915589076,0.77676823,41701.0,41690.0,0.32647231]
[1641915589279,0.05,41700.0,41692.0,0.27758176]
[1641915589531,0.283691,41699.0,41692.0,0.27758176]
[1641915589731,0.283691,41699.0,41694.0,0.001282]
[1641915590335,0.283691,41699.0,41696.0,0.0011]
[1641915590336,0.95,41699.0,41696.0,0.0011]
[1641915590535,0.283691,41697.0,41690.0,0.00225]
[1641915590731,0.283691,41693.0,41690.0,0.00225]
[1641915590934,0.048,41692.0,41690.0,0.00225]
[1641915591138,0.048,41692.0,41690.0,0.00193038]
[1641915591334,0.38299145,41692.0,41690.0,0.00193038]
[1641915591535,0.48299145,41692.0,41690.0,0.00193038]
[1641915591733,0.060003,41689.0,41687.0,0.0011]
[1641915592034,0.060003,41689.0,41684.0,0.004222]
[1641915592035,0.283691,41686.0,41684.0,0.004222]
[1641915592234,0.283691,41682.0,41680.0,0.045335]
[1641915592437,1.233691,41681.0,41680.0,0.045335]
[1641915592633,1.381691,41681.0,41679.0,0.0011]
[1641915592834,1.381691,41681.0,41676.0,0.0022]
[1641915592835,0.343709,41679.0,41676.0,0.0022]
[1641915593034,0.283691,41677.0,41676.0,0.0022]
[1641915593284,0.66547892,41677.0,41676.0,0.0022]
[1641915593483,0.66547892,41677.0,41676.0,0.0011]
[1641915593785,0.76547892,41677.0,41676.0,0.0011]
[1641915594184,1.11547892,41677.0,41676.0,0.0011]
[1641915594584,0.76547892,41677.0,41676.0,0.0011]
[1641915594784,0.43992049,41677.0,41676.0,0.0011]
[1641915595784,0.368115,41677.0,41676.0,0.0011]
[1641915596184,0.084424,41677.0,41676.0,0.0011]
[1641915596387,0.368115,41677.0,41676.0,0.0011]
[1641915596585,0.367115,41677.0,41676.0,0.0011]
[1641915596785,0.369115,41677.0,41676.0,0.0011]
[1641915597829,0.321115,41677.0,41676.0,0.0011]
[1641915598027,0.319115,41677.0,41676.0,0.0011]
[1641915598629,0.321115,41677.0,41676.0,0.81146288]
[1641915598829,0.002,41677.0,41676.0,0.86146288]
[1641915599033,0.002,41677.0,41676.0,1.68930697]
[1641915599228,0.002,41677.0,41676.0,1.57909126]
[1641915599430,0.002,41677.0,41676.0,0.47743019]
[1641915600131,0.29224218,41684.0,41676.0,0.0011]
[1641915600330,0.060001,41681.0,41676.0,0.0011]
[1641915600787,0.060001,41681.0,41676.0,0.0087095]
[1641915600987,0.283691,41680.0,41676.0,0.0087095]
[1641915601387,0.060004,41679.0,41676.0,0.0087095]
[1641915601586,0.283691,41678.0,41676.0,0.0087095]
[1641915601884,0.283691,41678.0,41676.0,0.0011]
[1641915602087,0.75673645,41677.0,41676.0,0.0011]
[1641915602287,1.04042745,41677.0,41676.0,0.0011]
[1641915602486,0.64042745,41677.0,41676.0,0.0011]
[1641915602689,0.64142745,41677.0,41676.0,0.0011]
[1641915603085,0.99142745,41677.0,41676.0,0.0011]
[1641915603485,0.4,41676.0,41674.0,0.00170955]
[1641915603686,1.06964698,41675.0,41674.0,0.00170955]
[1641915603887,0.77966798,41675.0,41674.0,0.00170955]
[1641915604087,0.43749407,41674.0,41670.0,0.00015]
[1641915604287,0.283691,41671.0,41670.0,0.00015]
[1641915604527,0.0322132,41671.0,41670.0,0.00015]
[1641915605127,0.0922302,41671.0,41670.0,0.00015]
[1641915605729,0.52585929,41671.0,41670.0,0.00015]
[1641915605929,0.47993322,41671.0,41670.0,0.00015]
[1641915606129,0.62793322,41671.0,41670.0,0.00015]
[1641915606529,0.62793322,41671.0,41669.0,0.0011]
[1641915606729,0.29504578,41670.0,41669.0,0.0011]
[1641915608216,0.57873678,41670.0,41669.0,0.0011]
[1641915608801,0.58073678,41670.0,41669.0,0.0011]
[1641915609002,1.03203596,41670.0,41669.0,0.0011]
[1641915609202,0.5,41668.0,41661.0,0.00309678]
[1641915609403,0.5,41668.0,41659.0,0.0453]
[1641915609404,1.31413294,41664.0,41659.0,0.0453]
[1641915609602,0.3392348,41660.0,41659.0,0.0453]
[1641915609803,0.283691,41657.0,41654.0,0.0011]
[1641915610004,0.33145515,41656.0,41654.0,0.0011]
[1641915610606,0.33145515,41656.0,41652.0,0.0999]
[1641915610607,0.39150015,41656.0,41652.0,0.0999]
[1641915610803,0.39250015,41656.0,41654.0,0.002]
[1641915611004,0.061045,41656.0,41654.0,0.002]
[1641915611605,0.061045,41656.0,41651.0,0.04]
[1641915612035,0.23848558,41654.0,41651.0,0.04]
[1641915612238,0.29852758,41654.0,41651.0,0.04]
[1641915612636,0.29852758,41654.0,41651.0,0.09]
[1641915612836,0.29952758,41654.0,41651.0,0.094]
[1641915613037,0.32453988,41653.0,41651.0,0.094]
[1641915613240,0.36181433,41654.0,41651.0,0.044]
[1641915613435,0.633691,41652.0,41651.0,0.044]
[1641915613640,0.30375315,41645.0,41644.0,0.91488454]